bitfinex/quotes_BTCUSD_20240828
["timestamp","ask_amount","ask_price","bid_price","bid_amount"]
[1724861822296,1.29861667,58478.0,58477.0,0.4552]
[1724861822523,1.19861667,58478.0,58477.0,0.4552]
[1724861823029,1.19861667,58478.0,58477.0,0.4562]
[1724861823030,1.20861667,58478.0,58477.0,0.4562]
[1724861823507,0.85660867,58478.0,58477.0,0.4552]
[1724861823730,0.86560867,58478.0,58477.0,0.4562]
[1724861824003,1.99936871,58478.0,58477.0,0.4562]
[1724861824230,2.10436871,58478.0,58477.0,0.4562]
[1724861824453,2.17580794,58478.0,58477.0,0.39145331]
[1724861824695,2.54081594,58478.0,58477.0,0.39145331]
[1724861825205,1.55793837,58474.0,58471.0,0.0004]
[1724861825499,1.68093837,58474.0,58471.0,0.0004]
[1724861825722,0.87390437,58472.0,58471.0,0.0004]
[1724861825954,1.73444339,58472.0,58471.0,0.0004]
[1724861826177,2.07648739,58472.0,58471.0,0.0004]
[1724861826412,2.07648739,58472.0,58437.0,0.15791966]
[1724861826413,0.86719637,58452.0,58437.0,0.15791966]
[1724861826646,0.86719637,58452.0,58424.0,0.47884904]
[1724861826647,0.171159,58425.0,58424.0,0.47884904]
[1724861826908,0.17118,58418.0,58417.0,0.0793]
[1724861827138,0.00179437,58442.0,58417.0,0.0793]
[1724861827139,0.00179437,58430.0,58417.0,0.0793]
[1724861827383,0.00179437,58430.0,58411.0,0.00432352]
[1724861827384,0.00179437,58431.0,58419.0,0.075]
[1724861827619,0.43094404,58444.0,58419.0,0.075]
[1724861827620,0.171166,58423.0,58419.0,0.075]
[1724861827849,0.171163,58424.0,58419.0,0.246177]
[1724861828101,0.171174,58420.0,58419.0,0.075]
[1724861828320,0.85587,58420.0,58419.0,0.075]
[1724861828575,1.198218,58420.0,58419.0,0.075]
[1724861828815,0.513522,58420.0,58419.0,0.075]
[1724861829042,0.00179437,58432.0,58419.0,0.075]
[1724861829793,0.00179437,58442.0,58426.0,0.0788]
[1724861830015,0.43094404,58453.0,58420.0,0.0648]
[1724861830016,0.007,58431.0,58420.0,0.0648]
[1724861830488,0.342256,58436.0,58423.0,0.171164]
[1724861830725,0.008,58432.0,58420.0,0.0648]
[1724861831197,0.00179437,58445.0,58420.0,0.0648]
[1724861831452,0.001,58431.0,58423.0,0.342327]
[1724861831721,0.171171,58421.0,58420.0,0.0648]
[1724861831981,0.00179437,58424.0,58420.0,0.0648]
[1724861832229,0.43094404,58443.0,58420.0,0.0648]
[1724861832230,0.00179437,58445.0,58433.0,0.171136]
[1724861832457,0.00179437,58445.0,58420.0,0.0648]
[1724861832458,0.50540786,58434.0,58420.0,0.0648]
[1724861832718,0.00179437,58445.0,58424.0,0.342321]
[1724861832973,0.00179437,58445.0,58420.0,0.0648]
[1724861832974,0.855855,58421.0,58420.0,0.0648]
[1724861833461,0.77323004,58431.0,58418.0,0.076]
[1724861833462,0.855885,58419.0,58418.0,0.076]
[1724861833915,1.198319,58415.0,58414.0,0.00819]
[1724861834380,1.59567063,58415.0,58414.0,0.00819]
[1724861834612,1.81290445,58415.0,58414.0,0.00819]
[1724861834848,1.77037063,58415.0,58414.0,0.00819]
[1724861835090,1.716396,58415.0,58414.0,0.00819]
[1724861835585,1.199319,58415.0,58414.0,0.00819]
[1724861835812,1.541696,58415.0,58414.0,0.00819]
[1724861836049,1.299319,58415.0,58414.0,0.00819]
[1724861836276,0.856942,58415.0,58414.0,0.00819]
[1724861836542,0.001,58415.0,58414.0,0.08819]
[1724861836768,0.85773637,58415.0,58414.0,0.15099]
[1724861836987,0.43094404,58433.0,58414.0,0.15099]
[1724861836988,0.342362,58418.0,58414.0,0.15099]
[1724861837248,0.514565,58415.0,58414.0,0.15099]
[1724861837474,0.856942,58415.0,58414.0,0.15099]
[1724861837708,0.856942,58415.0,58414.0,0.08819]
[1724861837945,0.855942,58415.0,58414.0,0.08819]
[1724861838171,1.198319,58415.0,58414.0,0.08819]
[1724861838405,1.540696,58415.0,58414.0,0.00819]
[1724861838932,1.640696,58415.0,58414.0,0.00819]
[1724861839157,1.298319,58415.0,58414.0,0.00819]
[1724861839414,1.198319,58415.0,58414.0,0.00819]
[1724861839928,1.198319,58415.0,58414.0,0.09089]
[1724861840153,0.855942,58415.0,58414.0,0.09089]
[1724861840389,0.855942,58415.0,58414.0,0.00819]
[1724861840622,0.171185,58416.0,58415.0,0.1429]
[1724861840876,0.00179437,58428.0,58415.0,0.1429]
[1724861841420,0.00179437,58442.0,58417.0,0.0827]
[1724861841667,0.00179437,58442.0,58420.0,0.0827]
[1724861841668,0.342267,58434.0,58420.0,0.0827]
[1724861841917,0.00179437,58442.0,58423.0,0.0827]
[1724861842163,0.43094404,58437.0,58416.0,0.0829]
[1724861842386,0.171183,58417.0,58416.0,0.0829]
[1724861842606,0.342326,58424.0,58416.0,0.0829]
[1724861842829,0.00179437,58427.0,58416.0,0.0829]
[1724861843331,0.171183,58417.0,58416.0,0.0829]
[1724861843635,0.513549,58417.0,58416.0,0.0829]
[1724861843853,1.198319,58415.0,58414.0,0.00819]
[1724861844783,0.1618,58426.0,58415.0,0.0826]
[1724861844784,0.171177,58419.0,58415.0,0.0826]
[1724861845065,0.0649,58435.0,58414.0,0.00819]
[1724861845066,0.002,58417.0,58416.0,0.24658746]
[1724861845326,0.50540786,58436.0,58425.0,0.171158]
[1724861845327,0.171145,58430.0,58425.0,0.171158]
[1724861845580,0.50540786,58436.0,58423.0,0.342328]
[1724861845809,0.50540786,58436.0,58422.0,0.0773]
[1724861845810,0.50540786,58436.0,58429.0,0.0773]
[1724861846043,0.855722,58430.0,58429.0,0.0773]
[1724861846293,0.171144,58430.0,58429.0,0.0773]
[1724861846549,0.00179437,58441.0,58429.0,0.0773]
[1724861846550,0.513413,58433.0,58429.0,0.0773]
[1724861846803,0.00179437,58441.0,58429.0,0.0773]
[1724861846804,0.342233,58440.0,58429.0,0.0773]
[1724861847058,0.342193,58447.0,58431.0,0.0829]
[1724861847295,0.00179437,58448.0,58440.0,0.0829]
[1724861847770,0.171075,58454.0,58441.0,0.0034221]
[1724861848004,0.171075,58454.0,58431.0,0.005]
[1724861848005,0.171077,58454.0,58449.0,0.0829]
[1724861848234,0.171069,58456.0,58450.0,0.232985]
[1724861848462,0.50720223,58469.0,58456.0,0.342137]
[1724861848752,0.50720223,58469.0,58461.0,0.0824]
[1724861848753,0.50540786,58469.0,58461.0,0.0824]
[1724861848983,0.171024,58472.0,58461.0,0.0647]
[1724861849207,0.50540786,58480.0,58461.0,0.0647]
[1724861849436,0.341971,58485.0,58463.0,0.0647]
[1724861849654,0.341995,58481.0,58463.0,0.0647]
[1724861849869,0.341974,58484.0,58464.0,0.0034201]
[1724861850114,0.00902001,58485.0,58454.0,0.00020563]
[1724861850115,0.00902001,58485.0,58466.0,0.342074]
[1724861850364,0.00902001,58485.0,58477.0,0.578221]
[1724861850886,0.171906,58478.0,58477.0,0.0652]
[1724861851121,0.001902,58478.0,58477.0,0.0652]
[1724861851347,0.513914,58478.0,58477.0,0.0652]
[1724861851572,0.342034,58474.0,58460.0,0.0652]
[1724861851797,0.001902,58478.0,58461.0,0.0828]
[1724861852021,0.171024,58471.0,58470.0,0.0828]
[1724861852262,0.001902,58478.0,58470.0,0.0828]
[1724861852513,0.171024,58471.0,58470.0,0.0828]
[1724861852739,0.171018,58474.0,58470.0,0.0828]
[1724861852972,0.855122,58471.0,58470.0,0.0828]
[1724861853203,0.171054,58461.0,58460.0,0.0652]
[1724861853422,0.85527,58461.0,58460.0,0.0652]
[1724861853819,0.342027,58475.0,58448.0,0.0641]
[1724861853820,0.342178,58449.0,58448.0,0.0641]
[1724861854036,0.855445,58449.0,58448.0,0.0641]
[1724861854248,0.513267,58449.0,58448.0,0.1393]
[1724861854721,0.171089,58449.0,58448.0,0.1393]
[1724861854936,0.342116,58460.0,58448.0,0.15323]
[1724861855158,0.342105,58462.0,58451.0,0.171081]
[1724861855159,0.171066,58457.0,58451.0,0.171081]
[1724861855379,0.50540786,58467.0,58448.0,0.15523]
[1724861855380,0.171075,58454.0,58448.0,0.15523]
[1724861855595,0.171069,58456.0,58450.0,0.171085]
[1724861855817,0.342126,58458.0,58450.0,0.171085]
[1724861856028,0.1,58468.0,58455.0,0.171069]
[1724861856343,0.357698,58480.0,58459.0,0.171058]
[1724861856344,0.50630986,58478.0,58459.0,0.171058]
[1724861856562,0.50630986,58478.0,58468.0,0.171032]
[1724861856563,0.000902,58478.0,58468.0,0.171032]
[1724861856802,0.00179437,58476.0,58469.0,0.171029]
[1724861857051,0.00179437,58476.0,58468.0,0.0513107]
[1724861857052,0.171017,58474.0,58470.0,0.0806]
[1724861857310,0.171017,58474.0,58472.0,0.0643]
[1724861857508,0.855095,58473.0,58472.0,0.0643]
[1724861857727,0.51485137,58473.0,58472.0,0.0643]
[1724861857945,0.171015,58475.0,58472.0,0.0643]
[1724861858168,0.513057,58473.0,58472.0,0.0643]
[1724861858957,0.001,58473.0,58472.0,0.0673]
[1724861859637,0.856095,58473.0,58472.0,0.0673]
[1724861859853,0.172019,58473.0,58472.0,0.0673]
[1724861860301,0.00179437,58476.0,58472.0,0.0643]
[1724861860526,0.172019,58473.0,58472.0,0.0733]
[1724861860769,0.513057,58473.0,58472.0,0.0643]
[1724861860993,0.51485137,58473.0,58472.0,0.0643]
[1724861861213,0.85788937,58473.0,58472.0,0.005]
[1724861861447,0.85691637,58471.0,58470.0,0.0806]
[1724861861690,0.85691637,58471.0,58463.0,0.1474]
[1724861861928,0.85691637,58471.0,58439.0,0.068581]
[1724861861929,0.171065,58457.0,58456.0,0.1474]
[1724861862163,0.855327,58457.0,58456.0,0.1474]
[1724861862373,0.855327,58457.0,58446.0,0.171097]
[1724861862374,0.513285,58447.0,58446.0,0.0663]
[1724861862843,0.513285,58447.0,58435.0,0.250729]
[1724861862844,0.171123,58438.0,58435.0,0.58500786]
[1724861863090,0.342208,58444.0,58435.0,0.61008076]
[1724861863331,0.00179437,58445.0,58435.0,0.61008076]
[1724861863332,0.34399837,58445.0,58438.0,0.0625]
[1724861863571,0.00179437,58445.0,58439.0,0.0777]
[1724861864183,0.00179437,58445.0,58442.0,0.171109]
[1724861864201,0.00179437,58445.0,58440.0,0.54201388]
[1724861864412,0.342136,58457.0,58438.0,0.0625]
[1724861864413,0.342126,58458.0,58442.0,0.342217]
[1724861864652,0.342126,58458.0,58438.0,0.0625]
[1724861864653,0.342126,58458.0,58452.0,0.171078]
[1724861864874,0.00179437,58460.0,58453.0,0.1416]
[1724861865126,0.171065,58458.0,58453.0,0.1406]
[1724861865387,0.342073,58467.0,58455.0,0.0765]
[1724861865603,0.171049,58463.0,58456.0,0.01922901]
[1724861865851,0.00179437,58476.0,58457.0,0.0767]
[1724861866097,0.342057,58470.0,58458.0,0.0767]
[1724861866335,0.171041,58466.0,58461.0,0.171053]
[1724861866588,0.17103,58470.0,58465.0,0.17104]
[1724861866830,0.00179437,58466.0,58460.0,0.342113]
[1724861867104,0.00179437,58466.0,58458.0,0.0767]
[1724861867105,0.51318,58459.0,58458.0,0.0767]
[1724861867335,0.8553,58459.0,58458.0,0.0767]
[1724861867584,0.8553,58459.0,58422.0,0.01]
[1724861867585,0.513372,58437.0,58419.0,0.005]
[1724861867805,1.19966237,58437.0,58418.0,0.08559619]
[1724861868048,0.0157,58458.0,58437.0,0.0638]
[1724861868049,0.01749437,58458.0,58437.0,0.0638]
[1724861868291,0.513364,58438.0,58437.0,0.0638]
[1724861868769,0.855607,58438.0,58437.0,0.145]
[1724861869016,0.51515837,58438.0,58437.0,0.145]
[1724861869533,0.513364,58438.0,58437.0,0.145]
[1724861869765,0.855607,58438.0,58437.0,0.145]
[1724861869985,0.855607,58438.0,58437.0,0.0812]
[1724861870211,0.51515837,58438.0,58437.0,0.0812]
[1724861870457,0.85740137,58438.0,58437.0,0.0812]
[1724861870694,0.85740137,58438.0,58437.0,0.013]
[1724861870953,0.51516637,58437.0,58436.0,0.000206]
[1724861871178,0.85741437,58437.0,58436.0,0.000206]
[1724861871399,1.19966237,58437.0,58436.0,0.000206]
[1724861873274,0.00179437,58445.0,58437.0,0.0823]
[1724861873529,0.05013762,58462.0,58442.0,0.171109]
[1724861873530,0.00179437,58448.0,58442.0,0.171109]
[1724861873785,0.57130786,58461.0,58443.0,0.08572161]
[1724861873786,0.00179437,58454.0,58443.0,0.08572161]
[1724861874009,0.00179437,58454.0,58449.0,0.171089]
[1724861874298,0.00179437,58467.0,58451.0,0.0635]
[1724861874557,0.342086,58465.0,58452.0,0.4211781]
[1724861874786,0.00179437,58468.0,58451.0,0.0635]
[1724861874787,0.171061,58459.0,58453.0,0.0756]
[1724861875010,0.00179437,58468.0,58455.0,0.17107]
[1724861875011,0.171057,58460.0,58455.0,0.17107]
[1724861875256,0.342092,58464.0,58456.0,0.0756]
[1724861875475,0.171065,58457.0,58456.0,0.0756]
[1724861875736,0.00179437,58464.0,58456.0,0.0756]
[1724861875737,0.342099,58463.0,58456.0,0.0756]
[1724861875960,0.00179437,58464.0,58456.0,0.0756]
[1724861875961,0.171063,58458.0,58456.0,0.0756]
[1724861876186,0.342079,58466.0,58457.0,0.171064]
[1724861876425,0.00179437,58469.0,58456.0,0.0756]
[1724861876649,0.171065,58457.0,58456.0,0.0756]
[1724861876908,0.513196,58457.0,58456.0,0.0756]
[1724861877132,0.85712137,58457.0,58456.0,0.0756]
[1724861877360,0.85712137,58457.0,58439.0,0.342233]
[1724861877361,0.17287437,58452.0,58449.0,0.0756]
[1724861877590,0.3421,58463.0,58449.0,0.0756]
[1724861877591,0.51505237,58450.0,58449.0,0.0756]
[1724861877823,0.171112,58441.0,58440.0,0.0808]
[1724861878057,0.855562,58441.0,58440.0,0.0808]
[1724861878321,1.197787,58441.0,58440.0,0.0808]
[1724861878544,0.00179437,58444.0,58433.0,0.0808]
[1724861878780,0.513399,58434.0,58433.0,0.0808]
[1724861879019,0.171112,58441.0,58440.0,0.014]
[1724861879246,0.85735637,58441.0,58440.0,0.014]
[1724861879538,1.19958137,58441.0,58440.0,0.014]
[1724861880485,1.96303137,58441.0,58440.0,0.014]
[1724861880716,1.96303137,58441.0,58414.0,0.00819]
[1724861880717,0.17298237,58415.0,58414.0,0.00819]
[1724861880945,0.513565,58415.0,58414.0,0.00819]
[1724861881176,1.19990749,58415.0,58414.0,0.00819]
[1724861881420,1.64228449,58415.0,58414.0,0.00819]
[1724861881894,1.65798449,58415.0,58414.0,0.00819]
[1724861882177,1.29811312,58415.0,58414.0,0.00819]
[1724861882404,1.29990749,58415.0,58414.0,0.00819]
[1724861882679,1.64228449,58415.0,58414.0,0.00919]
[1724861882945,1.29990749,58415.0,58414.0,0.00919]
[1724861883205,0.10179437,58427.0,58414.0,0.00919]
[1724861883475,0.342331,58423.0,58415.0,0.079]
[1724861883747,0.00179437,58430.0,58417.0,0.171182]
[1724861883748,0.342301,58428.0,58417.0,0.171182]
[1724861884036,0.342293,58430.0,58419.0,0.079]
[1724861884308,0.1,58440.0,58419.0,0.079]
[1724861884309,0.1,58440.0,58420.0,0.00342308]
[1724861884568,0.1,58440.0,58420.0,0.06992308]
[1724861884811,0.50540786,58439.0,58422.0,0.342334]
[1724861885035,0.1,58440.0,58430.0,0.171144]
[1724861885278,0.1,58440.0,58439.0,0.171118]
[1724861885529,0.1,58440.0,58439.0,0.855592]
[1724861885790,0.1,58440.0,58439.0,1.264329]
[1724861885791,0.101,58440.0,58439.0,1.264329]
[1724861886036,0.50540786,58455.0,58441.0,0.34222]
[1724861886285,0.00179437,58452.0,58440.0,0.342225]
[1724861886555,0.00179437,58455.0,58447.0,0.171094]
[1724861886808,0.000902,58475.0,58445.0,0.342196]
[1724861886809,0.00179437,58462.0,58445.0,0.342196]
[1724861887097,0.00179437,58462.0,58446.0,0.0342201]
[1724861887301,0.00179437,58462.0,58449.0,0.0774]
[1724861887302,0.171086,58450.0,58449.0,0.0774]
[1724861887567,0.00179437,58444.0,58443.0,0.0774]
[1724861887804,0.51510437,58444.0,58443.0,0.0774]
[1724861888051,0.51510437,58444.0,58430.0,0.003]
[1724861888052,0.00179437,58444.0,58433.0,0.0799]
[1724861888292,0.00179437,58444.0,58434.0,0.01463]
[1724861888794,0.171083,58451.0,58446.0,0.003]
[1724861889022,0.85546,58448.0,58447.0,0.081]
[1724861889238,0.85725437,58448.0,58447.0,0.081]
[1724861889467,0.855475,58447.0,58446.0,0.003]
[1724861889753,1.197665,58447.0,58446.0,0.003]
[1724861890026,1.54164937,58447.0,58446.0,0.003]
[1724861890251,0.513556,58416.0,58415.0,0.000821]
[1724861890475,1.20009237,58416.0,58415.0,0.000821]
[1724861890949,1.30009237,58416.0,58415.0,0.000821]
[1724861891668,0.171185,58416.0,58415.0,0.000821]
[1724861891886,0.003,58416.0,58415.0,0.064121]
[1724861892182,0.003,58416.0,58415.0,0.2535838]
[1724861892400,0.003,58416.0,58415.0,0.9383378]
[1724861892623,0.50540786,58437.0,58416.0,0.0753]
[1724861892846,0.171142,58431.0,58430.0,0.0753]
[1724861893098,0.342257,58436.0,58430.0,0.0753]
[1724861893099,0.171128,58436.0,58430.0,0.0753]
[1724861893356,0.00179437,58444.0,58430.0,0.0753]
[1724861893589,0.00179437,58444.0,58421.0,0.0794]
[1724861893590,0.43094404,58442.0,58421.0,0.0794]
[1724861893820,0.43094404,58442.0,58415.0,0.003821]
[1724861893821,0.171185,58416.0,58415.0,0.003821]
[1724861894081,0.139,58440.0,58416.0,0.0794]
[1724861894082,0.342275,58433.0,58416.0,0.0794]
[1724861894305,0.50540786,58432.0,58417.0,0.0088411]
[1724861894540,0.51522037,58431.0,58430.0,0.002]
[1724861894819,0.171174,58420.0,58416.0,0.0794]
[1724861895086,0.00179437,58430.0,58417.0,0.0088411]
[1724861895316,0.342284,58431.0,58421.0,0.171169]
[1724861895543,0.342248,58438.0,58422.0,0.0171169]
[1724861895544,0.171156,58426.0,58422.0,0.0171169]
[1724861895762,0.171164,58424.0,58417.0,0.0088411]
[1724861896018,0.404901,58446.0,58422.0,0.171167]
[1724861896019,0.342285,58431.0,58422.0,0.171167]
[1724861896260,0.342272,58433.0,58423.0,0.0171167]
[1724861896486,0.342272,58433.0,58417.0,0.0088411]
[1724861896487,0.171155,58427.0,58421.0,0.171169]
[1724861896726,0.342293,58430.0,58422.0,0.0513528]
[1724861896952,0.342293,58430.0,58423.0,0.0651]
[1724861897168,0.342277,58433.0,58423.0,0.0651]
[1724861897404,0.171162,58424.0,58423.0,0.0651]
[1724861897657,0.342284,58431.0,58423.0,0.0651]
[1724861897900,0.342251,58437.0,58423.0,0.0651]
[1724861898140,0.342251,58437.0,58429.0,0.342294]
[1724861898141,0.171125,58437.0,58429.0,0.342294]
[1724861898388,0.171122,58438.0,58432.0,0.171136]
[1724861898618,0.171122,58438.0,58427.0,0.342302]
[1724861898619,0.171128,58436.0,58430.0,0.171144]
[1724861898857,0.171096,58447.0,58442.0,0.171109]
[1724861899128,0.171096,58447.0,58423.0,0.0781]
[1724861899129,0.00179437,58457.0,58447.0,0.0752]
[1724861899357,0.34304311,58456.0,58447.0,0.0752]
[1724861899610,0.00090311,58456.0,58447.0,0.0752]
[1724861899826,0.171074,58455.0,58447.0,0.0752]
[1724861900048,0.00179437,58455.0,58448.0,0.0417397]
[1724861900318,0.171077,58454.0,58448.0,0.171089]
[1724861900549,0.00090311,58456.0,58448.0,0.06852165]
[1724861900787,0.00090311,58456.0,58455.0,0.513214]
[1724861901035,0.00090311,58456.0,58455.0,0.930557]
[1724861901272,0.00090311,58456.0,58455.0,0.929557]
[1724861902720,0.39223656,58486.0,58455.0,0.929557]
[1724861902721,0.34380237,58479.0,58461.0,0.342108]
[1724861902724,0.342912,58478.0,58462.0,0.0755]
[1724861902985,0.171048,58463.0,58462.0,0.1097108]
[1724861903232,0.342076,58467.0,58462.0,0.0755]
[1724861903233,0.171039,58466.0,58462.0,0.0755]
[1724861903470,0.00179437,58469.0,58462.0,0.0755]
[1724861903689,0.342068,58468.0,58463.0,0.0246558]
[1724861903926,0.00179437,58458.0,58456.0,0.0651]
[1724861904181,0.00179437,58461.0,58456.0,0.0651]
[1724861904408,0.00179437,58467.0,58457.0,0.01406]
[1724861904658,0.34387137,58467.0,58457.0,0.01406]
[1724861904907,0.17106,58459.0,58456.0,0.0651]
[1724861905124,0.171058,58460.0,58456.0,0.0651]
[1724861905370,0.171053,58462.0,58457.0,0.171064]
[1724861905608,0.171053,58462.0,58457.0,0.01406]
[1724861905827,0.00179437,58465.0,58460.0,0.079]
[1724861906086,0.171049,58463.0,58461.0,0.0435188]
[1724861906353,0.00179437,58470.0,58461.0,0.0435188]
[1724861906576,0.171026,58471.0,58465.0,0.342082]
[1724861906820,0.00179437,58472.0,58460.0,0.079]
[1724861907038,0.00179437,58465.0,58462.0,0.17105]
[1724861907271,0.171051,58462.0,58461.0,0.009306]
[1724861907491,0.171049,58463.0,58460.0,0.079]
[1724861907749,0.17283837,58465.0,58460.0,0.079]
[1724861908021,0.00179437,58465.0,58460.0,0.098816]
[1724861908270,0.342051,58471.0,58460.0,0.436928]
[1724861908271,0.34384537,58471.0,58460.0,0.436928]
[1724861908516,0.00269637,58475.0,58462.0,0.0772]
[1724861908762,0.00269637,58475.0,58461.0,0.04851926]
[1724861908763,0.17282037,58471.0,58463.0,0.0622]
[1724861909211,0.00179437,58471.0,58466.0,0.171039]
[1724861909213,0.171028,58470.0,58464.0,0.2144568]
[1724861909463,0.342046,58472.0,58466.0,0.171038]
[1724861909695,0.00179437,58472.0,58464.0,0.0434128]
[1724861909915,0.34209,58464.0,58460.0,0.005]
[1724861910182,0.513162,58461.0,58460.0,0.005]
[1724861910424,1.197378,58461.0,58460.0,0.005]
[1724861911132,0.513319,58443.0,58442.0,0.0622]
[1724861911403,0.0617,58454.0,58434.0,0.0622]
[1724861911653,0.1,58461.0,58440.0,0.342227]
[1724861911654,0.17288337,58449.0,58440.0,0.342227]
[1724861911901,0.17288337,58449.0,58435.0,0.0772]
[1724861911902,0.17288337,58449.0,58444.0,0.171103]
[1724861912136,0.171107,58443.0,58435.0,0.0772]
[1724861912362,0.342186,58448.0,58437.0,0.342248]
[1724861912595,0.342186,58448.0,58441.0,0.0826]
[1724861912596,0.00179437,58447.0,58441.0,0.0826]
[1724861912814,0.00179437,58447.0,58441.0,0.253711]
[1724861913054,0.00179437,58443.0,58441.0,0.253711]
[1724861913271,0.00179437,58451.0,58446.0,0.171096]
[1724861913497,0.00179437,58451.0,58444.0,0.342205]
[1724861913498,0.171087,58450.0,58444.0,0.171101]
[1724861913725,0.00179437,58451.0,58445.0,0.1711]
[1724861913726,0.17109,58449.0,58445.0,0.1711]
[1724861913970,0.113,58461.0,58442.0,0.03018758]
[1724861913971,0.342138,58456.0,58447.0,0.342189]
[1724861914232,0.171075,58454.0,58449.0,0.171088]
[1724861914464,0.171072,58455.0,58450.0,0.1444]
[1724861914692,0.171072,58455.0,58450.0,0.315485]
[1724861914934,0.00269308,58461.0,58451.0,0.0657663]
[1724861915169,0.00089871,58461.0,58459.0,0.171058]
[1724861915401,0.00089871,58461.0,58460.0,0.0171058]
[1724861915402,0.17195271,58461.0,58460.0,0.0171058]
[1724861915639,0.00089871,58461.0,58450.0,0.1444]
[1724861915882,0.171072,58455.0,58451.0,0.171083]
[1724861916130,0.00089871,58461.0,58452.0,0.0315483]
[1724861916344,0.00089871,58461.0,58460.0,0.513171]
[1724861916595,0.00089871,58461.0,58460.0,0.593071]
[1724861916858,0.00089871,58461.0,58460.0,0.999685]
[1724861917091,0.00089871,58461.0,58460.0,1.1338653]
[1724861917776,0.00089871,58461.0,58460.0,0.7917513]
[1724861918012,0.00089871,58461.0,58460.0,0.2785803]
[1724861918258,0.00089871,58461.0,58460.0,0.1444]
[1724861918480,0.51406071,58461.0,58460.0,0.0785]
[1724861918709,0.34300671,58461.0,58451.0,0.0773]
[1724861918959,0.17108,58452.0,58451.0,0.0773]
[1724861919207,0.34394537,58454.0,58451.0,0.0773]
[1724861919441,0.17108,58452.0,58451.0,0.0773]
[1724861919699,0.00179437,58454.0,58451.0,0.0773]
[1724861919926,0.513241,58452.0,58451.0,0.0773]
[1724861920151,0.513241,58452.0,58449.0,0.062]
[1724861920152,0.171101,58445.0,58444.0,0.1438]
[1724861920611,0.00179437,58455.0,58444.0,0.1438]
[1724861920887,0.171101,58445.0,58444.0,0.1438]
[1724861921161,0.00179437,58451.0,58437.0,0.51337]
[1724861921162,0.513364,58438.0,58437.0,0.0783]
[1724861921438,0.342245,58438.0,58431.0,0.0621]
[1724861921685,0.407873,58450.0,58431.0,0.07604]
[1724861921686,0.171138,58433.0,58431.0,0.07604]
[1724861921907,0.342267,58434.0,58431.0,0.07604]
[1724861922157,0.34404437,58437.0,58431.0,0.0621]
[1724861922158,0.171139,58432.0,58431.0,0.0621]
[1724861922403,0.513487,58424.0,58423.0,0.1394]
[1724861922687,0.513549,58417.0,58415.0,0.078121]
[1724861923234,0.0657,58431.0,58415.0,0.078121]
[1724861923466,0.855915,58417.0,58415.0,0.078121]
[1724861923944,0.51534337,58417.0,58415.0,0.000821]
[1724861924387,0.17097698,58417.0,58415.0,0.000821]
[1724861924669,0.85570898,58417.0,58415.0,0.000821]
[1724861925166,0.171183,58417.0,58415.0,0.000821]
[1724861925411,0.17297237,58419.0,58415.0,0.000821]
[1724861925632,0.17118,58418.0,58417.0,0.0181018]
[1724861925923,0.00179437,58420.0,58415.0,0.000821]
[1724861926181,0.00179437,58437.0,58418.0,0.342356]
[1724861926421,0.0827,58443.0,58434.0,0.171131]
[1724861926422,0.00179437,58442.0,58434.0,0.171131]
[1724861926665,0.00179437,58443.0,58440.0,0.0795]
[1724861926899,0.41759817,58457.0,58441.0,0.06270849]
[1724861926900,0.00179437,58448.0,58441.0,0.06270849]
[1724861927137,0.17108,58452.0,58445.0,0.1711]
[1724861927393,0.17286937,58454.0,58446.0,0.02053167]
[1724861927635,0.171092,58448.0,58447.0,0.0616]
[1724861927858,0.34394337,58454.0,58447.0,0.0616]
[1724861928117,0.00179437,58457.0,58448.0,0.00342158]
[1724861928371,0.00269308,58461.0,58449.0,0.0762]
[1724861928636,0.00269308,58461.0,58450.0,0.0479989]
[1724861928637,0.171071,58455.0,58450.0,0.0479989]
[1724861928862,0.003,58454.0,58450.0,0.0479989]
[1724861929090,0.171071,58455.0,58450.0,0.0479989]
[1724861929346,0.171071,58455.0,58451.0,0.03568869]
[1724861930021,0.34480608,58461.0,58451.0,0.03568869]
[1724861930250,0.171079,58453.0,58451.0,0.03568869]
[1724861930529,0.85543,58450.0,58449.0,0.0762]
[1724861930731,0.171089,58449.0,58448.0,0.004]
[1724861930996,0.855445,58449.0,58448.0,0.004]
[1724861931233,1.19941737,58449.0,58448.0,0.004]
[1724861931500,0.85731137,58444.0,58443.0,0.0783]
[1724861931735,0.171112,58441.0,58440.0,0.0607]
[1724861931956,0.00179437,58447.0,58440.0,0.0607]
[1724861932188,0.342201,58446.0,58441.0,0.0481244]
[1724861932422,0.513337,58441.0,58440.0,0.0607]
[1724861932675,0.00179437,58447.0,58432.0,0.0611]
[1724861932676,0.513408,58433.0,58432.0,0.0611]
[1724861932909,0.513408,58433.0,58431.0,0.0776]
[1724861932910,0.171139,58432.0,58431.0,0.0776]
[1724861933133,0.513417,58432.0,58431.0,0.0776]
[1724861933369,0.513417,58432.0,58416.0,0.000817]
[1724861933370,0.00179437,58423.0,58422.0,0.0776]
[1724861933627,0.171174,58420.0,58419.0,0.0611]
[1724861933849,0.342327,58424.0,58419.0,0.0611]
[1724861934062,0.34409037,58429.0,58422.0,0.171168]
[1724861934063,0.171154,58427.0,58422.0,0.171168]
[1724861934286,0.171156,58426.0,58420.0,0.1885457]
[1724861934499,0.171171,58421.0,58420.0,0.0139517]
[1724861934765,0.17296237,58422.0,58421.0,0.01526517]
[1724861935012,0.51531637,58420.0,58419.0,0.0611]
[1724861935229,0.51533437,58418.0,58417.0,0.0776]
[1724861935753,0.17297737,58417.0,58416.0,0.000817]
[1724861936019,0.85770937,58417.0,58416.0,0.000817]
[1724861936239,0.855915,58417.0,58416.0,0.000817]
[1724861936463,0.171179,58419.0,58416.0,0.000817]
[1724861936707,0.342344,58421.0,58416.0,0.000817]
[1724861937119,0.171178,58419.0,58416.0,0.000817]